fUST/lending_fUST_20240721
["ID","MTS","AMOUNT","RATE_DAILY","PERIOD"]
[332788354,1721523044706,-500.0,0.00013698,2]
[332788355,1721523044717,-500.0,0.00013698,2]
[332788356,1721523044727,-1368.69,0.00013698,2]
[332788357,1721523044738,-500.0,0.00013698,2]
[332788358,1721523044750,-500.0,0.00013698,2]
[332788359,1721523044760,-500.0,0.00013698,2]
[332788360,1721523044770,-1460.09,0.00013698,2]
[332788361,1721523044781,-500.0,0.00013698,2]
[332788362,1721523044792,-500.0,0.00013698,2]
[332788363,1721523044802,-16155.93,0.00013698,2]
[332788364,1721523044813,-7812.42,0.00013698,2]
[332788365,1721523044824,-500.0,0.00013698,2]
[332788366,1721523044835,-500.0,0.00013698,2]
[332788367,1721523044845,-500.0,0.00013698,2]
[332788368,1721523044856,-500.0,0.00013698,2]
[332788369,1721523044869,-2044.79,0.00013698,2]
[332788370,1721523044879,-2467.16,0.00013698,2]
[332788371,1721523044890,-243.73701742,0.00013698,2]
[332788372,1721523044901,-602.66,0.00013698,2]
[332788373,1721523044913,-500.81614324,0.00013698,2]
[332788374,1721523044923,-500.0,0.00013698,2]
[332788375,1721523044932,-1022.55,0.00013698,2]
[332788376,1721523044942,-616.97,0.00013698,2]
[332788377,1721523044951,-581.5,0.00013698,2]
[332788378,1721523044960,-500.0,0.00013698,2]
[332788379,1721523044970,-3040.26,0.00013698,2]
[332788380,1721523044981,-500.0,0.00013698,2]
[332788381,1721523044992,-500.0,0.00013698,2]
[332788382,1721523045002,-522.64,0.00013698,2]
[332788383,1721523045012,-500.0,0.00013698,2]
[332788384,1721523045023,-500.0,0.00013698,2]
[332788385,1721523045036,-500.0,0.00013698,2]
[332788386,1721523045045,-646.05085239,0.00013698,2]
[332788387,1721523045054,-500.0,0.00013698,2]
[332788388,1721523045063,-500.0,0.00013698,2]
[332788389,1721523045073,-3323.93,0.00013698,2]
[332788390,1721523045082,-502.61155734,0.00013698,2]
[332788391,1721523045091,-500.0,0.00013698,2]
[332788392,1721523045100,-500.0,0.00013698,2]
[332788393,1721523045110,-500.0,0.00013698,2]
[332788394,1721523045119,-691.21,0.00013698,2]
[332788395,1721523045128,-500.0,0.00013698,2]
[332788396,1721523045137,-500.0,0.00013698,2]
[332788397,1721523045146,-11347.86,0.00013698,2]
[332788398,1721523045155,-500.0,0.00013698,2]
[332788399,1721523045164,-500.0,0.00013698,2]
[332788400,1721523045174,-500.0,0.00013698,2]
[332788401,1721523045184,-500.0,0.00013698,2]
[332788402,1721523045193,-500.0,0.00013698,2]
[332788403,1721523045203,-500.0,0.00013698,2]
[332788404,1721523045212,-893.85,0.00013698,2]
[332788405,1721523045221,-503.2814085,0.00013698,2]
[332788406,1721523045231,-500.0,0.00013698,2]
[332788407,1721523045240,-500.0,0.00013698,2]
[332788408,1721523045250,-500.0,0.00013698,2]
[332788409,1721523045259,-500.0,0.00013698,2]
[332788410,1721523045268,-500.0,0.00013698,2]
[332788411,1721523045277,-500.0,0.00013698,2]
[332788412,1721523045287,-500.0,0.00013698,2]
[332788413,1721523045296,-500.0,0.00013698,2]
[332788414,1721523045306,-521.76625834,0.00013698,2]
[332788415,1721523045316,-4697.95,0.00013698,2]
[332788416,1721523045326,-500.0,0.00013698,2]
[332788417,1721523045335,-500.0,0.00013698,2]
[332788418,1721523045346,-1096.14,0.00013698,2]
[332788419,1721523045355,-674.78,0.00013698,2]
[332788420,1721523045364,-1035.17,0.00013698,2]
[332788421,1721523045374,-500.0,0.00013698,2]
[332788422,1721523045383,-2598.17,0.00013698,2]
[332788423,1721523045393,-1260.72,0.00013698,2]
[332788424,1721523045404,-500.0,0.00013698,2]
[332788425,1721523045414,-500.0,0.00013698,2]
[332788426,1721523045424,-500.0,0.00013698,2]
[332788427,1721523045433,-500.0,0.00013698,2]
[332788428,1721523045442,-500.0,0.00013698,2]
[332788429,1721523045453,-719.86,0.00013698,2]
[332788430,1721523045464,-500.0,0.00013698,2]
[332788431,1721523045476,-500.0,0.00013698,2]
[332788432,1721523045487,-500.0,0.00013698,2]
[332788433,1721523045497,-500.0,0.00013698,2]
[332788434,1721523045507,-500.0,0.00013698,2]
[332788435,1721523045518,-500.0,0.00013698,2]
[332788436,1721523045527,-233.81394485,0.00013698,2]
[332788437,1721523045536,-500.0,0.00013698,2]
[332788438,1721523045546,-500.0,0.00013698,2]
[332788439,1721523045556,-898.05,0.00013698,2]
[332788440,1721523045565,-500.0,0.00013698,2]
[332788441,1721523045574,-500.0,0.00013698,2]
[332788442,1721523045584,-3665.51,0.00013698,2]
[332788443,1721523045596,-500.0,0.00013698,2]
[332788444,1721523045612,-500.0,0.00013698,2]
[332788445,1721523045623,-500.0,0.00013698,2]
[332788446,1721523045633,-1997.73,0.00013698,2]
[332788447,1721523045643,-500.0,0.00013698,2]
[332788448,1721523045655,-1181.42,0.00013698,2]
[332788449,1721523045666,-500.0,0.00013698,2]
[332788450,1721523045678,-505.46201646,0.00013698,2]
[332788451,1721523045689,-500.0,0.00013698,2]
[332788452,1721523045700,-500.0,0.00013698,2]
[332788453,1721523045710,-535.13087164,0.00013698,2]
[332788454,1721523045765,-1068.87,0.00013698,2]
[332788455,1721523045775,-500.0,0.00013698,2]
[332788456,1721523045784,-1998.48,0.00013698,2]
[332788457,1721523045793,-1815.08,0.00013698,2]
[332788458,1721523045803,-500.0,0.00013698,2]
[332788459,1721523045812,-1989.94,0.00013698,2]
[332788460,1721523045821,-501.3438523,0.00013698,2]
[332788461,1721523045830,-500.0,0.00013698,2]
[332788462,1721523045840,-500.0,0.00013698,2]
[332788463,1721523045849,-500.0,0.00013698,2]
[332788464,1721523045860,-500.0,0.00013698,2]
[332788465,1721523045870,-500.0,0.00013698,2]
[332788466,1721523045882,-150.0,0.00013698,2]
[332788467,1721523045891,-3030.35,0.00013698,2]
[332788468,1721523045901,-509.82043443,0.00013698,2]
[332788469,1721523045913,-1045.11,0.00013698,2]
[332788470,1721523045923,-500.0,0.00013698,2]
[332788471,1721523045932,-512.07655604,0.00013698,2]
[332788472,1721523045941,-554.43944664,0.00013698,2]
[332788473,1721523045951,-500.0,0.00013698,2]
[332788474,1721523045961,-500.0,0.00013698,2]
[332788475,1721523045970,-500.0,0.00013698,2]
[332788476,1721523045980,-419.0673167,0.00013698,2]
[332788477,1721523045989,-500.0,0.00013698,2]
[332788478,1721523045999,-500.0,0.00013698,2]
[332788479,1721523046009,-500.0,0.00013698,2]
[332788480,1721523046019,-1454.0,0.00013698,2]
[332788481,1721523046028,-8174.31,0.00013698,2]
[332788482,1721523046040,-1349.61,0.00013698,2]
[332788483,1721523046052,-8174.31,0.00013698,2]
[332788484,1721523046062,-8174.31,0.00013698,2]
[332788485,1721523046073,-8174.31,0.00013698,2]
[332788486,1721523046082,-500.0,0.00013698,2]
[332788487,1721523046092,-8174.31,0.00013698,2]
[332788488,1721523046105,-8174.31,0.00013698,2]
[332788489,1721523046114,-8174.31,0.00013698,2]
[332788490,1721523046125,-8174.31,0.00013698,2]
[332788491,1721523046134,-500.0,0.00013698,2]
[332788492,1721523046143,-8174.31,0.00013698,2]
[332788493,1721523046153,-500.0,0.00013698,2]
[332788494,1721523046163,-8174.31,0.00013698,2]
[332788495,1721523046173,-8174.31,0.00013698,2]
[332788496,1721523046183,-8174.31,0.00013698,2]
[332788497,1721523046195,-8174.31,0.00013698,2]
[332788499,1721523046206,-500.0,0.00013698,2]
[332788500,1721523046215,-8174.31,0.00013698,2]
[332788502,1721523046225,-8174.31,0.00013698,2]
[332788504,1721523046234,-8174.31,0.00013698,2]
[332788506,1721523046247,-8174.31,0.00013698,2]
[332788508,1721523046258,-8174.31,0.00013698,2]
[332788510,1721523046269,-8174.31,0.00013698,2]
[332788511,1721523046280,-609.91,0.00013698,2]
[332788512,1721523046291,-8174.31,0.00013698,2]
[332788513,1721523046302,-8174.31,0.00013698,2]
[332788514,1721523046313,-2511.06,0.00013698,2]
[332788515,1721523046323,-552.51580868,0.00013698,2]
[332788516,1721523046333,-8174.31,0.00013698,2]
[332788517,1721523046344,-8174.31,0.00013698,2]
[332788519,1721523046355,-8174.43961514,0.00013698,2]
[332788521,1721523046366,-5050.51,0.00013698,2]
[332788522,1721523046375,-191.2377236,0.00013698,2]
[332788523,1721523046386,-500.0,0.00013698,2]
[332788524,1721523046395,-500.0,0.00013698,2]
[332788525,1721523046404,-500.0,0.00013698,2]
[332788526,1721523046413,-500.0,0.00013698,2]
[332788527,1721523046423,-500.0,0.00013698,2]
[332788528,1721523046433,-500.0,0.00013698,2]
[332788529,1721523046443,-3384.03,0.00013698,2]
[332788530,1721523046452,-3384.03,0.00013698,2]
[332788531,1721523046461,-500.0,0.00013698,2]
[332788532,1721523046470,-3384.03,0.00013698,2]
[332788533,1721523046480,-3384.03,0.00013698,2]
[332788534,1721523046489,-3384.03,0.00013698,2]
[332788535,1721523046498,-1592.31,0.00013698,2]
[332788536,1721523046507,-3384.03,0.00013698,2]
[332788537,1721523046516,-3384.03,0.00013698,2]
[332788538,1721523046525,-193.47418578,0.00013698,2]
[332788539,1721523046534,-3384.03,0.00013698,2]
[332788540,1721523046543,-3384.03,0.00013698,2]
[332788541,1721523046553,-3384.03,0.00013698,2]
[332788542,1721523046562,-925.61,0.00013698,2]
[332788543,1721523046571,-3384.03,0.00013698,2]
[332788544,1721523046580,-500.0,0.00013698,2]
[332788545,1721523046590,-500.0,0.00013698,2]
[332788546,1721523046600,-3384.03,0.00013698,2]
[332788547,1721523046612,-3384.03,0.00013698,2]
[332788548,1721523046622,-3384.03,0.00013698,2]
[332788549,1721523046631,-3384.03,0.00013698,2]
[332788550,1721523046641,-3384.03,0.00013698,2]
[332788551,1721523046651,-3384.03,0.00013698,2]
[332788552,1721523046660,-500.0,0.00013698,2]
[332788553,1721523046670,-500.0,0.00013698,2]
[332788554,1721523046680,-1883.63911605,0.00013698,2]
[332788555,1721523046977,-1293.42835481,0.00013698,2]
[332788556,1721523046994,-206.96252914,0.00013698,2]
[332788557,1721523047003,-545.63,0.00013698,2]
[332788558,1721523047015,-3384.03,0.00013698,2]
[332788559,1721523047026,-3384.03,0.00013698,2]
[332788560,1721523047038,-3384.03,0.00013698,2]
[332788561,1721523047046,-3384.03,0.00013698,2]
[332788562,1721523047055,-2809.91,0.00013698,2]
[332788563,1721523047064,-3384.03,0.00013698,2]
[332788564,1721523047073,-500.0,0.00013698,2]
[332788565,1721523047082,-3384.03919494,0.00013698,2]
[332788566,1721523047092,-500.0,0.00013698,2]
[332788567,1721523047101,-500.0,0.00013698,2]
[332788568,1721523047111,-660.19,0.00013698,2]
[332788569,1721523047120,-500.0,0.00013698,2]
[332788570,1721523047131,-500.0,0.00013698,2]
[332788571,1721523047143,-500.0,0.00013698,2]
[332788572,1721523047154,-500.0,0.00013698,2]
[332788573,1721523047165,-500.0,0.00013698,2]
[332788574,1721523047175,-641.87,0.00013698,2]
[332788575,1721523047184,-500.0,0.00013698,2]
[332788576,1721523047196,-500.0,0.00013698,2]
[332788577,1721523047206,-2366.76,0.00013698,2]
[332788578,1721523047217,-500.0,0.00013698,2]
[332788579,1721523047227,-500.0,0.00013698,2]
[332788580,1721523047238,-8268.0,0.00013698,2]
[332788581,1721523047248,-500.0,0.00013698,2]
[332788582,1721523047258,-500.0,0.00013698,2]
[332788583,1721523047268,-500.0,0.00013698,2]
[332788584,1721523047278,-69.46253637,0.00013698,2]
[332788585,1721523048468,-154.76012181,0.00012121,2]
[332788586,1721523048478,-430.53746363,0.00013698,2]
[332788587,1721523048488,-500.0,0.00013698,2]
[332788588,1721523048498,-4010.38463405,0.00013698,2]
[332788589,1721523048511,-9183.09536595,0.00013698,2]
[332788590,1721523048521,-500.0,0.00013698,2]
[332788591,1721523048531,-500.0,0.00013698,2]
[332788592,1721523048544,-500.0,0.00013698,2]
[332788593,1721523048553,-737.92,0.00013698,2]
[332788594,1721523048563,-1049.7,0.00013698,2]
[332788595,1721523048573,-215.06016804,0.00013698,2]
[332788596,1721523048585,-1652.23983196,0.00013698,2]
[332788597,1721523048596,-504.74873459,0.00013698,2]
[332788598,1721523048608,-500.0,0.00013698,2]
[332788599,1721523048618,-1275.62270963,0.00013698,2]
[332788600,1721523048674,-1074.08729037,0.00013698,2]
[332788601,1721523048688,-500.0,0.00013698,2]
[332788602,1721523048698,-1813.36,0.00013698,2]
[332788603,1721523048708,-500.0,0.00013698,2]
[332788604,1721523048719,-500.0,0.00013698,2]
[332788605,1721523048729,-500.0,0.00013698,2]
[332788606,1721523048738,-503.36826388,0.00013698,2]
[332788607,1721523048748,-2684.63,0.00013698,2]
[332788608,1721523048758,-852.03,0.00013698,2]
[332788609,1721523048768,-500.0,0.00013698,2]
[332788610,1721523048779,-500.0,0.00013698,2]
[332788611,1721523048789,-564.61,0.00013698,2]
[332788612,1721523048799,-1200.65,0.00013698,2]
[332788613,1721523048809,-2564.03,0.00013698,2]
[332788614,1721523048819,-500.0,0.00013698,2]
[332788615,1721523048829,-1307.06,0.00013698,2]
[332788616,1721523048839,-500.0,0.00013698,2]
[332788617,1721523048849,-577.64,0.00013698,2]
[332788618,1721523048859,-2368.1920592,0.00013699,2]
[332788619,1721523048869,-3000.0,0.00013699,2]
[332788620,1721523048879,-2720.718093,0.00013699,2]
[332788621,1721523048890,-209.047648,0.00013699,2]
[332788622,1721523048900,-209.047648,0.00013699,2]
[332788623,1721523048910,-272.246558,0.00013699,2]
[332788624,1721523048921,-272.246558,0.00013699,2]
[332788625,1721523048931,-456.22,0.00013699,2]
[332788626,1721523048941,-153.0,0.000138,2]
[332788627,1721523048951,-293.8031846,0.000138,2]
[332788628,1721523048960,-293.8031846,0.000139,2]
[332788629,1721523048971,-293.8031846,0.000139,2]
[332788630,1721523048980,-413.1635146,0.000139,2]
[332788631,1721523048991,-153.0,0.000139,2]
[332788632,1721523049001,-306.0,0.000139,2]
[332788633,1721523049010,-153.0,0.000139,2]
[332788634,1721523049020,-306.0,0.000139,2]
[332788635,1721523049031,-293.8031846,0.000139,2]
[332788636,1721523049041,-367.31035882,0.0001395,2]
[332788637,1721523049051,-1592.125535,0.00013961,2]
[332788638,1721523049062,-1592.125535,0.00013961,2]
[332788639,1721523049073,-500.0,0.00013961,2]
[332788640,1721523049083,-500.0,0.00013961,2]
[332788641,1721523049094,-294.2,0.00013961,2]
[332788642,1721523049103,-1026.652137,0.00013962,2]
[332788643,1721523049113,-1026.652137,0.00013962,2]
[332788644,1721523049123,-1706.86270058,0.00013962,2]
[332788645,1721523049694,-3596.58679812,0.00013962,2]
[332788646,1721523049704,-3171.08626427,0.00013972,5]
[332788647,1721523049717,-2386.07474856,0.00013972,5]
[332788663,1721524000798,404.10487158,9.999e-05,2]
[332788675,1721524129516,704.15263082,9.999e-05,2]
[332788676,1721524162092,801.71584675,9.999e-05,2]
[332788721,1721524231980,-205.592533,0.00012225,2]
[332788723,1721524231990,-300.0,0.00012345,2]
[332788725,1721524231999,-5555.73372022,0.00012346,2]
[332788759,1721524237979,-3219.82191824,0.00012346,2]
[332788760,1721524238042,-16124.44436154,0.00012346,2]
[332788761,1721524238053,-457.3646311,0.00012539,2]
[332788762,1721524238063,-205.592533,0.00012862,2]
[332788763,1721524238073,-620.40495839,0.00013529,2]
[332788764,1721524238082,-420.0,0.00013579,2]
[332788765,1721524238091,-1777.80504341,0.00013598,2]
[332788766,1721524238102,-669.30537807,0.00013598,2]
[332788767,1721524238113,-367.31035882,0.000136,2]
[332788768,1721524238124,-153.0,0.00013652,2]
[332788769,1721524238133,-5303.4494987,0.00013666,2]
[332788770,1721524238145,-2900.21699887,0.00013688,2]
[332788771,1721524238157,-80654.07637753,0.00013688,2]
[332788772,1721524238168,-4641.90518758,0.00013689,2]
[332788773,1721524238178,-500.0,0.00013698,2]
[332788774,1721524238190,-500.0,0.00013698,2]
[332788775,1721524238199,-500.0,0.00013698,2]
[332788777,1721524238210,-500.0,0.00013698,2]
[332788779,1721524238221,-500.0,0.00013698,2]
[332788780,1721524238231,-500.0,0.00013698,2]
[332788781,1721524238242,-500.0,0.00013698,2]
[332788783,1721524238254,-500.0,0.00013698,2]
[332788784,1721524238266,-500.0,0.00013698,2]
[332788785,1721524238278,-500.0,0.00013698,2]
[332788786,1721524238287,-500.0,0.00013698,2]
[332788787,1721524238296,-228.13644181,0.00013698,2]
[332788788,1721524238307,-300.0,0.00013698,2]
[332788789,1721524238318,-500.0,0.00013698,2]
[332788790,1721524238327,-155.78197618,0.00013698,2]
[332788791,1721524238336,-500.0,0.00013698,2]
[332788792,1721524238346,-500.0,0.00013698,2]
[332788793,1721524238356,-500.0,0.00013698,2]
[332788794,1721524238367,-500.0,0.00013698,2]
[332788795,1721524238378,-500.0,0.00013698,2]
[332788796,1721524238389,-500.0,0.00013698,2]
[332788797,1721524238400,-500.0,0.00013698,2]
[332788798,1721524238411,-500.0,0.00013698,2]
[332788799,1721524238420,-500.0,0.00013698,2]
[332788800,1721524238430,-500.0,0.00013698,2]
[332788801,1721524238442,-500.0,0.00013698,2]
[332788802,1721524238453,-355.74625373,0.00013698,2]
[332788803,1721524238462,-500.0,0.00013698,2]
[332788804,1721524238473,-500.0,0.00013698,2]
[332788805,1721524238484,-500.0,0.00013698,2]
[332788806,1721524238495,-500.0,0.00013698,2]
[332788807,1721524238504,-500.0,0.00013698,2]
[332788808,1721524238514,-500.0,0.00013698,2]
[332788809,1721524238525,-500.0,0.00013698,2]
[332788810,1721524238534,-500.0,0.00013698,2]
[332788811,1721524238545,-350.0,0.00013698,2]
[332788812,1721524238556,-500.0,0.00013698,2]
[332788813,1721524238567,-500.0,0.00013698,2]
[332788814,1721524238579,-500.0,0.00013698,2]
[332788815,1721524238588,-500.0,0.00013698,2]
[332788816,1721524238599,-500.0,0.00013698,2]
[332788817,1721524238609,-500.0,0.00013698,2]
[332788818,1721524238619,-500.0,0.00013698,2]
[332788819,1721524238630,-500.0,0.00013698,2]
[332788820,1721524238640,-500.0,0.00013698,2]
[332788821,1721524238649,-500.0,0.00013698,2]
[332788822,1721524238658,-500.0,0.00013698,2]
[332788823,1721524238667,-500.0,0.00013698,2]
[332788824,1721524238676,-500.0,0.00013698,2]
[332788825,1721524238685,-297.39668351,0.00013698,2]
[332788826,1721524238694,-500.0,0.00013698,2]
[332788827,1721524238704,-500.0,0.00013698,2]
[332788828,1721524238713,-581.90704144,0.00013698,2]
[332788829,1721524238723,-500.0,0.00013698,2]
[332788830,1721524238732,-500.0,0.00013698,2]
[332788831,1721524238742,-500.0,0.00013698,2]
[332788832,1721524238751,-500.0,0.00013698,2]
[332788833,1721524238762,-500.0,0.00013698,2]
[332788834,1721524238772,-387.79553029,0.00013698,2]
[332788835,1721524238781,-304.50847872,0.00013698,2]
[332788836,1721524238790,-500.0,0.00013698,2]
[332788837,1721524238800,-500.0,0.00013698,2]
[332788838,1721524238810,-500.0,0.00013698,2]
[332788839,1721524238820,-300.0,0.00013698,2]
[332788840,1721524238830,-500.0,0.00013698,2]
[332788841,1721524238839,-500.0,0.00013698,2]
[332788842,1721524238849,-500.0,0.00013698,2]
[332788843,1721524238859,-500.0,0.00013698,2]
[332788844,1721524238869,-500.0,0.00013698,2]
[332788845,1721524238878,-524.73135772,0.00013698,2]
[332788846,1721524238887,-500.0,0.00013698,2]
[332788847,1721524238896,-500.0,0.00013698,2]
[332788848,1721524238905,-500.0,0.00013698,2]
[332788849,1721524238915,-500.0,0.00013698,2]
[332788850,1721524238924,-500.0,0.00013698,2]
[332788851,1721524238933,-500.0,0.00013698,2]
[332788852,1721524238942,-500.0,0.00013698,2]
[332788853,1721524238952,-500.0,0.00013698,2]
[332788854,1721524238962,-2338.34,0.00013698,2]
[332788855,1721524238971,-500.0,0.00013698,2]
[332788856,1721524238981,-513.70642918,0.00013698,2]
[332788857,1721524238991,-500.0,0.00013698,2]
[332788858,1721524239000,-500.0,0.00013698,2]
[332788859,1721524239009,-500.0,0.00013698,2]
[332788860,1721524239019,-500.0,0.00013698,2]
[332788861,1721524239028,-500.0,0.00013698,2]
[332788862,1721524239037,-674.85,0.00013698,2]
[332788863,1721524239047,-500.0,0.00013698,2]
[332788864,1721524239058,-500.0,0.00013698,2]
[332788865,1721524239071,-500.0,0.00013698,2]
[332788866,1721524239080,-500.0,0.00013698,2]
[332788867,1721524239090,-500.0,0.00013698,2]
[332788868,1721524239099,-500.0,0.00013698,2]
[332788869,1721524239110,-500.0,0.00013698,2]
[332788870,1721524239120,-500.0,0.00013698,2]
[332788871,1721524239130,-500.0,0.00013698,2]
[332788872,1721524239142,-503.14598103,0.00013698,2]
[332788873,1721524239151,-501.22838301,0.00013698,2]
[332788874,1721524239161,-500.0,0.00013698,2]
[332788875,1721524239170,-581.98,0.00013698,2]
[332788876,1721524239179,-500.0,0.00013698,2]
[332788877,1721524239188,-500.0,0.00013698,2]
[332788878,1721524239198,-500.0,0.00013698,2]
[332788879,1721524239207,-500.0,0.00013698,2]
[332788880,1721524239217,-500.0,0.00013698,2]
[332788881,1721524239226,-500.0,0.00013698,2]
[332788882,1721524239236,-500.0,0.00013698,2]
[332788883,1721524239246,-503.70346198,0.00013698,2]
[332788884,1721524239255,-500.0,0.00013698,2]
[332788885,1721524239264,-581.14,0.00013698,2]
[332788886,1721524239274,-500.0,0.00013698,2]
[332788887,1721524239283,-398.38256931,0.00013698,2]
[332788888,1721524239292,-500.0,0.00013698,2]
[332788889,1721524239301,-511.47376649,0.00013698,2]
[332788890,1721524239310,-500.0,0.00013698,2]
[332788891,1721524239321,-1367.07,0.00013698,2]
[332788892,1721524239330,-1057.98,0.00013698,2]
[332788893,1721524239339,-596.87,0.00013698,2]
[332788894,1721524239349,-501.25801672,0.00013698,2]
[332788895,1721524239358,-502.09315046,0.00013698,2]
[332788896,1721524239367,-500.0,0.00013698,2]
[332788897,1721524239376,-504.90314749,0.00013698,2]
[332788898,1721524239385,-507.51827141,0.00013698,2]
[332788899,1721524239395,-500.0,0.00013698,2]
[332788900,1721524239404,-500.0,0.00013698,2]
[332788901,1721524239414,-500.0,0.00013698,2]
[332788902,1721524239424,-513.19,0.00013698,2]
[332788903,1721524239433,-500.0,0.00013698,2]
[332788904,1721524239442,-500.0,0.00013698,2]
[332788905,1721524239451,-500.0,0.00013698,2]
[332788906,1721524239460,-500.0,0.00013698,2]
[332788907,1721524239469,-501.40132505,0.00013698,2]
[332788908,1721524239479,-603.13,0.00013698,2]
[332788909,1721524239488,-500.0,0.00013698,2]
[332788910,1721524239498,-502.3541028,0.00013698,2]
[332788911,1721524239506,-582.07,0.00013698,2]
[332788912,1721524239517,-669.72,0.00013698,2]
[332788913,1721524239526,-500.0,0.00013698,2]
[332788914,1721524239535,-500.0,0.00013698,2]
[332788915,1721524239544,-500.0,0.00013698,2]
[332788916,1721524239553,-500.0,0.00013698,2]
[332788917,1721524239562,-1594.29,0.00013698,2]
[332788918,1721524239572,-500.0,0.00013698,2]
[332788919,1721524239581,-500.0,0.00013698,2]
[332788921,1721524239590,-500.0,0.00013698,2]
[332788923,1721524239599,-500.0,0.00013698,2]
[332788924,1721524239608,-1454.0,0.00013698,2]
[332788925,1721524239616,-535.33170948,0.00013698,2]
[332788926,1721524239626,-517.43758687,0.00013698,2]
[332788927,1721524239635,-518.04290527,0.00013698,2]
[332788928,1721524239644,-500.0,0.00013698,2]
[332788929,1721524239654,-500.0,0.00013698,2]
[332788931,1721524239663,-513.29292792,0.00013698,2]
[332788933,1721524239672,-501.14861689,0.00013698,2]
[332788935,1721524239681,-500.0,0.00013698,2]
[332788937,1721524239690,-500.0,0.00013698,2]
[332788939,1721524239699,-500.0,0.00013698,2]
[332788941,1721524239708,-669.1,0.00013698,2]
[332788943,1721524239717,-500.0,0.00013698,2]
[332788945,1721524239726,-500.0,0.00013698,2]
[332788947,1721524239736,-500.0,0.00013698,2]
[332788949,1721524239746,-500.0,0.00013698,2]
[332788951,1721524239755,-867.82,0.00013698,2]
[332788953,1721524239765,-506.666072,0.00013698,2]
[332788955,1721524239774,-500.0,0.00013698,2]
[332788957,1721524239783,-500.0,0.00013698,2]
[332788959,1721524239792,-500.0,0.00013698,2]
[332788961,1721524239801,-500.0,0.00013698,2]
[332788963,1721524239810,-500.0,0.00013698,2]
[332788965,1721524239820,-500.0,0.00013698,2]
[332788968,1721524239829,-500.0,0.00013698,2]
[332788971,1721524239839,-500.0,0.00013698,2]
[332788974,1721524239848,-500.0,0.00013698,2]
[332788976,1721524239857,-500.0,0.00013698,2]
[332788978,1721524239866,-500.0,0.00013698,2]
[332788980,1721524239875,-500.0,0.00013698,2]
[332788982,1721524239884,-500.0,0.00013698,2]
[332788985,1721524239893,-500.0,0.00013698,2]
[332788987,1721524239902,-500.0,0.00013698,2]
[332788989,1721524239911,-500.0,0.00013698,2]
[332788991,1721524239920,-500.0,0.00013698,2]
[332788993,1721524239929,-500.0,0.00013698,2]
[332788994,1721524239938,-500.0,0.00013698,2]
[332788996,1721524239947,-282.83156827,0.00013698,2]
[332788999,1721524239957,-500.0,0.00013698,2]
[332789002,1721524239966,-500.0,0.00013698,2]
[332789004,1721524239975,-511.04904643,0.00013698,2]
[332789005,1721524239984,-1051.44,0.00013698,2]
[332789006,1721524239993,-502.11824121,0.00013698,2]
[332789007,1721524240003,-500.0,0.00013698,2]
[332789008,1721524240012,-500.0,0.00013698,2]
[332789009,1721524240021,-500.0,0.00013698,2]
[332789010,1721524240030,-500.0,0.00013698,2]
[332789011,1721524240041,-500.0,0.00013698,2]